bitfinex-derivatives/quotes_BNBF0:USTF0_20250904
["timestamp","ask_amount","ask_price","bid_price","bid_amount"]
[1757010383055,0.79069708,844.18,843.35,0.79281307]
[1757010385159,0.79069708,844.17,843.36,0.79281307]
[1757010385365,0.79069708,844.18,843.35,0.79281307]
[1757010385664,0.20620389,843.98,843.35,0.79281307]
[1757010386163,0.20620389,843.98,843.36,0.79281307]
[1757010387761,0.20620389,843.98,843.37,0.79281307]
[1757010388166,0.20620389,843.98,843.38,0.79281307]
[1757010388864,0.20620389,843.98,843.39,0.79281307]
[1757010389266,0.20620389,843.98,843.38,0.79281307]
[1757010390462,0.20620389,843.98,843.39,0.79281307]
[1757010390967,0.20620389,843.98,843.38,0.79281307]
[1757010391166,0.20620389,843.98,843.39,0.79281307]
[1757010395068,0.20620389,843.98,843.38,0.79281307]
[1757010398270,0.20620389,843.98,843.37,0.79281307]
[1757010399172,0.20620389,843.98,843.38,0.79281307]
[1757010401174,0.20620389,843.98,843.39,0.79281307]
[1757010401571,0.20620389,843.98,843.38,0.79281307]
[1757010404378,0.20620389,843.98,843.39,0.79281307]
[1757010407980,0.20620389,843.98,843.4,0.79281307]
[1757010409182,0.20620389,843.98,843.41,0.79281307]
[1757010409387,0.20620389,843.98,843.4,0.79281307]
[1757010411586,0.20620389,843.98,843.41,0.79281307]
[1757010413383,0.20620389,843.98,843.4,0.79281307]
[1757010416889,0.20620389,843.98,843.39,0.79281307]
[1757010418689,0.20620389,843.98,843.49,0.79281307]
[1757010419895,0.20620389,843.98,843.5,0.79281307]
[1757010421599,0.20620389,843.98,843.51,0.79281307]
[1757010421794,0.20620389,843.98,843.52,0.79281307]
[1757010422192,0.20620389,843.98,843.53,0.79281307]
[1757010422992,0.20620389,843.98,843.52,0.79281307]
[1757010423493,0.20620389,843.98,843.53,0.79281307]
[1757010424997,0.20620389,843.98,843.54,0.79281307]
[1757010427294,0.20620389,843.98,843.55,0.79281307]
[1757010428297,0.20620389,843.98,843.56,0.79281307]
[1757010429401,0.20620389,843.98,843.58,0.79281307]
[1757010429600,0.20620389,843.98,843.57,0.79281307]
[1757010431308,0.20620389,843.98,843.56,0.79281307]
[1757010431607,0.20620389,843.98,843.57,0.79281307]
[1757010432007,0.20620389,843.98,843.6,0.79281307]
[1757010432205,0.20620389,843.98,843.59,0.79281307]
[1757010432408,0.20620389,843.98,843.6,0.79281307]
[1757010433111,0.20620389,843.98,843.59,0.79281307]
[1757010434707,0.20620389,843.98,843.6,0.79281307]
[1757010435111,0.20620389,843.98,843.61,0.79281307]
[1757010435313,0.20620389,843.98,843.6,0.79281307]
[1757010438311,0.20620389,843.98,843.59,0.79281307]
[1757010441916,0.20620389,843.98,843.61,0.79281307]
[1757010447414,0.20620389,843.98,843.6,0.79281307]
[1757010448315,0.20620389,843.98,843.61,0.79281307]
[1757010448719,0.79069708,844.25,843.61,0.79281307]
[1757010449016,0.20615076,844.09,843.62,0.79281307]
[1757010449318,0.20615076,844.09,843.61,0.79281307]
[1757010450020,0.20615076,844.09,843.62,0.79281307]
[1757010451621,0.20615076,844.09,843.58,0.79281307]
[1757010452322,0.20615076,844.09,843.57,0.79281307]
[1757010455424,0.20615076,844.09,843.56,0.79281307]
[1757010456929,0.20615076,844.09,843.57,0.79281307]
[1757010457529,0.20615076,844.09,843.57,0.79771257]
[1757010458340,0.20615076,844.09,843.58,0.79771257]
[1757010461538,0.20615076,844.09,843.6,0.79771257]
[1757010462244,0.20615076,844.09,843.61,0.79771257]
[1757010466346,0.20615076,844.09,843.62,0.79771257]
[1757010466550,0.20615076,844.09,843.61,0.79771257]
[1757010467949,0.20615076,844.09,843.62,0.79771257]
[1757010471950,0.20615076,844.09,843.63,0.79771257]
[1757010472652,0.20615076,844.09,843.47,1.0629753]
[1757010473154,0.20615076,844.09,843.62,0.79839058]
[1757010473349,0.20615076,844.09,843.71,0.79839058]
[1757010473853,0.20615076,844.09,843.54,0.79839058]
[1757010474048,0.20615076,844.09,843.41,0.79839058]
[1757010474253,0.20615076,844.09,843.4,0.79839058]
[1757010474451,0.20615076,844.09,843.41,0.79839058]
[1757010475754,0.20615076,844.09,843.43,0.79839058]
[1757010476351,0.20615076,844.09,843.44,0.79839058]
[1757010476555,0.20615076,844.09,843.45,0.79839058]
[1757010477155,0.20615076,844.09,843.44,0.79839058]
[1757010477456,0.20615076,844.09,843.45,0.79839058]
[1757010478156,0.20615076,844.09,843.44,0.79839058]
[1757010482256,0.20615076,844.09,843.43,0.79839058]
[1757010483557,0.20615076,844.09,843.47,0.79839058]
[1757010484659,0.20615076,844.09,843.48,0.79839058]
[1757010485059,0.20615076,844.09,843.47,0.79839058]
[1757010485460,0.20615076,844.09,843.44,0.79839058]
[1757010486360,0.20615076,844.09,843.43,0.79839058]
[1757010487461,0.20615076,844.09,843.44,0.79839058]
[1757010487858,0.20615076,844.09,843.43,0.79839058]
[1757010490266,0.20615076,844.09,843.42,0.79839058]
[1757010492266,0.20615076,844.09,843.25,0.79839058]
[1757010492563,0.20615076,844.09,843.24,0.79839058]
[1757010492964,0.20615076,844.09,843.25,0.79839058]
[1757010493163,0.20615076,844.09,843.24,0.79839058]
[1757010493566,0.20615076,844.09,843.23,0.79839058]
[1757010493764,0.20615076,844.09,843.22,0.79839058]
[1757010494064,0.20615076,844.09,843.24,0.79839058]
[1757010494367,0.20615076,844.09,843.22,0.79839058]
[1757010496467,0.20615076,844.09,842.94,1.0629753]
[1757010496468,0.20615076,844.09,843.21,0.79839058]
[1757010497765,0.20615076,844.09,843.16,0.79839058]
[1757010497966,0.20615076,844.09,842.92,0.20617213]
[1757010507577,0.20615076,844.09,842.94,1.0629753]
[1757010507876,0.20615076,844.09,842.95,1.0629753]
[1757010508876,0.20615076,844.09,842.96,1.0629753]
[1757010509074,1.00264042,844.09,842.97,1.0629753]
[1757010509572,0.79648966,844.08,842.97,1.0629753]
[1757010509777,0.79648966,844.08,842.98,1.0629753]
[1757010510474,0.79648966,844.08,842.99,1.0629753]
[1757010511281,0.79648966,844.05,843.02,1.0629753]
[1757010512478,0.79648966,844.0,843.08,1.0629753]
[1757010513480,0.79648966,844.01,843.07,1.0629753]
[1757010513684,0.79648966,844.02,843.09,1.0629753]
[1757010515190,0.20615076,844.09,842.92,0.20617213]
[1757010519692,0.20615076,844.09,842.93,1.0629753]
[1757010521296,0.20615076,844.09,842.94,1.0629753]
[1757010524100,0.20615076,844.09,842.95,1.0629753]
[1757010525096,1.00264042,844.09,843.08,1.0629753]
[1757010527203,0.79648966,844.08,843.09,1.0629753]
[1757010528205,0.79648966,844.08,843.1,1.0629753]
[1757010529104,0.79648966,844.07,843.1,1.0629753]
[1757010529301,0.79648966,844.06,843.12,1.0629753]
[1757010529702,0.79648966,844.02,843.17,1.0629753]
[1757010530103,0.79648966,844.01,843.17,1.0629753]
[1757010530300,0.79648966,844.01,843.18,1.0629753]
[1757010531302,0.79648966,844.0,843.19,1.0629753]
[1757010531907,0.79648966,844.02,843.16,1.0629753]
[1757010532206,0.79648966,844.04,843.14,1.0629753]
[1757010533404,0.79648966,844.03,843.15,1.0629753]
[1757010535103,0.79648966,844.02,843.16,1.0629753]
[1757010535406,0.79648966,844.02,843.15,1.0629753]
[1757010538204,0.79648966,844.02,843.16,1.0629753]
[1757010539709,0.79648966,844.01,843.16,1.0629753]
[1757010540006,0.79648966,844.01,843.17,1.0629753]
[1757010540809,0.79648966,844.01,843.16,1.0629753]
[1757010541209,0.79648966,844.02,843.16,1.0629753]
[1757010541409,0.79648966,844.01,843.16,1.0629753]
[1757010541810,0.79648966,843.98,843.21,1.0629753]
[1757010542110,0.20615076,844.09,843.21,1.0629753]
[1757010542313,0.79642882,843.97,843.22,1.0629753]
[1757010542509,0.79642882,843.97,843.21,1.0629753]
[1757010543415,0.79642882,843.97,843.22,1.0629753]
[1757010545413,0.79642882,843.96,843.23,1.0629753]
[1757010546014,0.79642882,843.95,843.24,1.0629753]
[1757010547511,0.79642882,843.94,843.25,1.0629753]
[1757010548315,0.79642882,843.94,843.26,1.0629753]
[1757010548513,0.79642882,843.93,843.26,1.0629753]
[1757010548719,0.79642882,843.94,843.24,1.0629753]
[1757010549320,0.79642882,843.94,843.25,1.0629753]
[1757010550416,0.79642882,843.93,843.25,1.0629753]
[1757010550614,0.79642882,843.93,843.26,1.0629753]
[1757010551321,0.79642882,843.92,843.27,1.0629753]
[1757010552017,0.79642882,843.92,842.92,0.20617213]
[1757010552018,0.79642882,843.92,843.28,1.0629753]
[1757010552219,0.79642882,843.9,843.29,1.0629753]
[1757010552619,0.79642882,843.91,843.29,1.0629753]
[1757010554519,0.79642882,843.9,843.29,1.0629753]
[1757010558124,0.79642882,843.91,843.43,0.79932955]
[1757010558527,0.79642882,843.9,843.43,0.79932955]
[1757010558726,0.79642882,843.91,843.42,0.79932955]
[1757010560027,0.79642882,843.92,843.42,0.79932955]
[1757010561924,0.79642882,843.91,843.42,0.79932955]
[1757010563227,0.79642882,843.92,843.42,0.79932955]
[1757010563535,0.79642882,843.95,843.4,0.79932955]
[1757010565328,0.79642882,843.94,843.39,0.79932955]
[1757010567333,0.79642882,843.93,843.39,0.79932955]
[1757010567832,0.79642882,843.95,843.35,0.79932955]
[1757010568235,0.79642882,843.96,843.35,0.79932955]
[1757010568435,0.79642882,843.93,843.31,0.79932955]
[1757010568634,0.79642882,843.93,843.32,0.79932955]
[1757010569335,0.79642882,843.93,843.31,0.79932955]
[1757010569535,0.79642882,843.94,843.31,0.79932955]
[1757010570734,0.79642882,843.94,843.3,0.79932955]
[1757010572633,0.79642882,843.95,843.3,0.79932955]
[1757010573031,0.79642882,843.94,843.3,0.79932955]
[1757010573536,0.79642882,843.94,843.31,0.79932955]
[1757010574031,0.79642882,843.93,843.31,0.79932955]
[1757010574334,0.79642882,843.94,843.31,0.79932955]
[1757010574929,0.79642882,843.96,843.29,0.79932955]
[1757010577434,0.79642882,843.94,843.3,0.79932955]
[1757010579138,0.79642882,844.05,843.23,0.79932955]
[1757010579634,0.79642882,844.04,843.21,0.79932955]
[1757010580137,0.79642882,844.04,843.22,0.79932955]
[1757010580437,0.79642882,844.04,843.21,0.79932955]
[1757010580835,0.79642882,843.99,843.14,0.79932955]
[1757010581334,0.20615076,844.09,842.71,0.20625033]
[1757010581335,0.79642882,843.97,843.12,0.79932955]
[1757010582334,0.79642882,843.97,843.11,0.79932955]
[1757010582737,0.79642882,843.98,843.11,0.79932955]
[1757010583342,0.79642882,843.98,843.1,0.79932955]
[1757010584141,0.79642882,843.99,843.1,0.79932955]
[1757010584341,0.79642882,844.0,843.09,0.79932955]
[1757010585641,0.79642882,843.9,843.15,0.79932955]
[1757010585837,0.79642882,843.91,843.15,0.79932955]
[1757010586343,0.79642882,843.91,843.14,0.79932955]
[1757010587146,0.79642882,843.91,843.15,0.79932955]
[1757010587442,0.79642882,843.91,843.14,0.79932955]
[1757010587841,0.79642882,843.89,843.16,0.79932955]
[1757010589041,0.79642882,843.89,843.15,0.79932955]
[1757010590042,0.79642882,843.9,843.15,0.79932955]
[1757010590441,0.79642882,843.91,843.14,0.79932955]
[1757010590643,0.79642882,843.9,843.14,0.79932955]
[1757010590845,0.79642882,843.91,843.14,0.79932955]
[1757010591146,0.79642882,843.9,843.15,0.79932955]
[1757010591347,0.79642882,843.91,843.14,0.79932955]
[1757010591747,0.79642882,843.92,843.14,0.79932955]
[1757010591943,0.79642882,843.92,843.13,0.79932955]
[1757010592648,0.79642882,843.92,843.14,0.79932955]
[1757010593148,0.79642882,843.92,843.13,0.79932955]
[1757010593349,0.79642882,843.92,842.72,1.594463]
[1757010593350,0.79642882,843.91,843.12,0.79932955]
[1757010593646,0.79642882,843.9,843.12,0.79932955]
[1757010594057,0.79642882,843.9,842.71,0.20625033]
[1757010594058,0.79642882,843.89,843.13,0.79932955]
[1757010595147,0.79642882,843.84,843.03,0.79932955]
[1757010595350,0.79642882,843.85,843.02,0.79932955]
[1757010595951,0.79642882,843.83,843.01,0.79932955]
[1757010596447,0.79642882,843.84,843.0,0.79932955]
[1757010597462,0.79642882,843.87,842.98,0.79932955]
[1757010597751,0.79642882,843.8,842.89,0.79932955]
[1757010598449,0.79642882,843.79,842.9,0.79932955]
[1757010598649,0.79642882,843.78,842.89,0.79932955]
[1757010599352,0.79642882,843.79,842.88,0.79932955]
[1757010599952,0.79642882,843.78,842.89,0.79932955]
[1757010600248,0.79642882,843.76,842.91,0.79932955]
[1757010600953,0.79642882,843.78,842.91,0.79932955]
[1757010601153,0.79642882,843.79,842.96,0.79932955]
[1757010601354,0.79642882,843.81,842.94,0.79932955]
[1757010602054,0.79642882,843.77,842.97,0.79932955]
[1757010602350,0.79642882,843.71,842.84,0.79932955]
[1757010602550,0.79642882,843.7,842.83,0.79932955]
[1757010602954,0.79642882,843.71,842.83,0.79932955]
[1757010603155,0.79642882,843.72,842.82,0.79932955]
[1757010603355,0.79642882,843.73,842.81,0.79932955]
[1757010603552,0.79642882,843.72,842.81,0.79932955]
[1757010604358,0.79642882,843.76,842.82,0.79932955]
[1757010604562,0.79642882,843.77,842.81,0.79932955]
[1757010605457,0.79642882,843.78,842.81,0.79932955]
[1757010605857,1.0598737,843.99,842.48,0.20630902]
[1757010605858,0.79642882,843.88,842.74,0.79932955]
[1757010606054,0.79642882,843.86,842.72,0.79932955]
[1757010606357,0.20615076,844.09,842.48,0.20630902]
[1757010606358,0.79642882,843.87,842.71,0.79932955]
[1757010607059,0.79642882,843.9,842.59,0.79932955]
[1757010607254,0.79642882,843.92,842.67,0.79932955]
[1757010607455,0.20615076,844.09,842.48,0.20630902]
[1757010607456,0.79642882,843.86,842.73,0.79932955]
[1757010607660,0.79642882,843.87,842.81,0.79932955]
[1757010607960,0.79642882,843.88,842.82,0.79932955]
[1757010608160,0.79642882,843.89,842.82,0.79932955]
[1757010608357,0.79642882,843.89,842.81,0.79932955]
[1757010608660,0.79642882,843.9,842.81,0.79932955]
[1757010608957,0.79642882,843.89,842.81,0.79932955]
[1757010609260,0.79642882,843.86,842.83,0.79932955]
[1757010609660,0.79642882,843.85,842.83,0.79932955]
[1757010609957,0.79642882,843.84,842.84,0.79932955]
[1757010610856,0.20615076,844.09,842.9,0.79932955]
[1757010610857,0.79642882,843.89,842.9,0.79932955]
[1757010613766,0.79642882,843.86,842.9,0.79932955]
[1757010613966,0.79642882,843.8,842.85,0.79932955]
[1757010614167,0.79642882,843.73,842.55,0.79932955]
[1757010614465,0.79642882,843.64,842.45,0.79932955]
[1757010615462,0.79642882,843.65,842.43,0.79932955]
[1757010616173,0.79642882,843.7,842.4,0.79932955]
[1757010616374,0.79642882,843.8,842.48,0.79932955]
[1757010616570,0.79642882,843.77,842.49,0.79932955]
[1757010617169,0.79642882,843.77,842.5,0.79932955]
[1757010617375,0.79642882,843.76,842.48,0.79932955]
[1757010617871,0.79642882,843.77,842.48,0.79932955]
[1757010618174,0.79642882,843.76,842.48,0.79932955]
[1757010618374,0.79642882,843.77,842.47,0.79932955]
[1757010619077,0.79642882,843.61,842.45,0.79932955]
[1757010619373,0.79642882,843.55,842.45,0.79932955]
[1757010619578,0.79642882,843.55,842.44,0.79932955]
[1757010619776,0.20615076,844.09,842.23,0.79932955]
[1757010619777,0.79642882,843.86,842.23,0.79932955]
[1757010620178,0.79642882,843.64,842.22,0.79932955]
[1757010620373,0.79642882,843.41,842.22,0.79932955]
[1757010620577,0.79642882,843.37,842.24,0.79932955]
[1757010620775,0.79642882,843.38,842.16,0.79932955]
[1757010621077,0.79642882,843.24,841.99,0.79932955]
[1757010621273,0.79642882,843.24,841.93,0.79932955]
[1757010621674,0.79642882,843.26,841.94,0.79932955]
[1757010621874,0.79642882,843.33,842.04,0.79932955]
[1757010622275,0.79642882,843.34,841.88,0.79932955]
[1757010622574,0.79642882,843.33,841.87,0.79932955]
[1757010622878,0.79642882,843.33,841.88,0.79932955]
[1757010623078,0.20615076,844.09,841.83,0.20648224]
[1757010623079,0.79642882,843.3,841.89,0.79932955]
[1757010623375,0.79642882,843.24,841.91,0.79932955]
[1757010623776,0.79642882,843.23,841.91,0.79932955]
[1757010623977,1.0598737,843.42,841.91,0.79932955]
[1757010623978,0.79642882,843.24,841.91,0.79932955]
[1757010624177,0.79642882,843.28,841.94,0.79932955]
[1757010624374,0.79642882,843.29,841.92,0.79932955]
[1757010624675,0.79642882,843.3,841.91,0.79932955]
[1757010624875,0.20615076,844.09,841.93,0.79932955]
[1757010624876,0.79642882,843.28,841.93,0.79932955]
[1757010625077,0.79642882,843.28,841.83,0.20648224]
[1757010625078,0.79642882,843.28,841.92,0.79932955]
[1757010625374,0.79642882,843.29,841.9,0.79932955]
[1757010625874,0.79642882,843.28,841.9,0.79932955]
[1757010626179,0.79642882,843.25,841.92,0.79932955]
[1757010626476,0.79642882,843.24,841.92,0.79932955]
[1757010626779,0.79642882,843.38,841.83,0.20648224]
[1757010627177,0.79642882,843.39,841.83,0.20648224]
[1757010627479,0.79642882,843.4,841.83,0.20648224]
[1757010627880,0.79642882,843.39,841.83,0.20648224]
[1757010628080,0.79642882,843.39,841.74,0.79932955]
[1757010628281,0.79642882,843.4,841.75,0.20649633]
[1757010629176,0.79642882,843.41,841.75,0.20649633]
[1757010629381,0.79642882,843.42,841.75,0.20649633]
[1757010629580,0.79642882,843.43,841.75,0.20649633]
[1757010629879,0.79642882,843.37,841.75,0.20649633]
[1757010630376,0.79642882,843.48,841.75,0.20649633]
[1757010630675,0.79642882,843.47,841.75,0.20649633]
[1757010632276,0.79642882,843.48,841.75,0.20649633]
[1757010635179,0.79642882,843.47,841.75,0.20649633]
[1757010635676,0.79642882,843.46,841.75,0.20649633]
[1757010636082,0.79642882,843.27,841.75,0.20649633]
[1757010636282,0.79642882,843.28,841.75,0.20649633]
[1757010637281,0.79642882,843.29,841.75,0.20649633]
[1757010637481,0.79642882,843.35,841.75,0.20649633]
[1757010637676,0.79642882,843.37,841.75,0.20649633]
[1757010637878,0.79642882,843.29,841.38,0.79932955]
[1757010638079,0.79642882,843.26,841.63,0.20652206]
[1757010638280,0.79642882,843.2,841.36,0.79932955]
[1757010638482,0.79642882,843.2,841.51,0.20655822]
[1757010638980,0.79642882,843.15,841.51,0.20655822]
[1757010639279,0.79642882,843.14,841.51,0.20655822]
[1757010639486,0.79642882,843.06,841.51,0.20655822]
[1757010639684,0.79642882,843.07,841.51,0.20655822]
[1757010639885,0.79642882,843.16,841.51,0.20655822]
[1757010640286,0.79642882,843.17,841.51,0.20655822]
[1757010640583,0.79642882,843.12,841.51,0.20655822]
[1757010640984,0.79642882,843.07,841.51,0.20655822]
[1757010641284,0.79642882,843.08,841.51,0.20655822]
[1757010641583,0.79642882,843.06,841.51,0.20655822]
[1757010641783,0.79642882,843.01,841.51,0.20655822]
[1757010643184,0.79642882,843.0,841.51,0.20655822]
[1757010643386,0.79642882,842.99,841.51,0.20655822]
[1757010643585,0.79642882,843.0,841.51,0.20655822]
[1757010644182,0.79642882,842.98,841.51,0.20655822]
[1757010644382,0.79642882,843.02,841.51,0.20655822]
[1757010645287,0.79642882,843.03,841.51,0.20655822]
[1757010647387,0.79642882,843.04,841.51,0.20655822]
[1757010648089,0.79642882,843.08,841.51,0.20655822]
[1757010648391,0.79642882,843.21,841.51,0.20655822]
[1757010648687,0.79642882,843.3,841.51,0.20655822]
[1757010649287,0.20655271,842.86,841.51,0.20655822]
[1757010660597,0.20655271,842.86,841.54,0.78874446]
[1757010661295,0.20655271,842.86,841.58,0.78874446]
[1757010662398,0.20655271,842.86,841.51,0.20655822]
[1757010662399,0.20655271,842.86,841.59,0.78874446]
[1757010663094,0.20655271,842.86,841.57,0.78874446]
[1757010663295,0.20655271,842.86,841.58,0.78874446]
[1757010663497,0.20655271,842.86,841.53,0.78874446]
[1757010663794,0.20655271,842.86,841.51,0.20655822]
[1757010669803,0.20655271,842.86,841.35,0.78874446]
[1757010670202,0.20655271,842.86,841.39,0.20657723]
[1757010671303,0.20655271,842.86,841.4,0.78874446]
[1757010672107,0.20655271,842.86,841.41,0.78874446]
[1757010672307,0.20655271,842.86,841.45,0.78874446]
[1757010673405,0.9915341,842.86,841.49,0.78874446]
[1757010674311,0.20655271,842.86,841.48,0.78874446]
[1757010674605,0.20655271,842.86,841.5,0.78874446]
[1757010675311,0.9915341,842.86,841.51,0.78874446]
[1757010676111,0.20655271,842.86,841.5,0.78874446]
[1757010676411,0.78498139,842.84,841.48,0.78874446]
[1757010676808,0.78498139,842.83,841.51,0.78874446]
[1757010677010,0.78498139,842.82,841.52,0.78874446]
[1757010677408,0.78498139,842.8,841.55,0.78874446]
[1757010678115,0.78498139,842.82,841.56,0.78874446]
[1757010678313,0.9915341,842.86,841.54,0.78874446]
[1757010678614,0.20655271,842.86,841.54,0.78874446]
[1757010679013,0.20655271,842.86,841.52,0.78874446]
[1757010679313,0.20655271,842.86,841.29,0.20660053]
[1757010679314,0.78498139,842.85,841.55,0.78874446]
[1757010679512,0.9915341,842.86,841.54,0.78874446]
[1757010679709,0.78498139,842.83,841.52,0.78874446]
[1757010680415,0.78498139,842.82,841.54,0.78874446]
[1757010681117,0.78498139,842.82,841.53,0.78874446]
[1757010681313,0.78498139,842.82,841.54,0.78874446]
[1757010684415,0.78498139,842.81,841.55,0.78874446]
[1757010685214,0.78498139,842.81,841.54,0.78874446]
[1757010685414,0.78498139,842.81,841.55,0.78874446]
[1757010686018,0.78498139,842.79,841.56,0.78874446]
[1757010686317,0.78498139,842.79,841.57,0.78874446]
[1757010687617,0.78498139,842.78,841.55,0.78874446]
[1757010687813,0.78498139,842.77,841.55,0.78874446]
[1757010688013,0.78498139,842.77,841.56,0.78874446]
[1757010688214,0.20655271,842.86,841.29,0.20660053]
[1757010688215,0.78498139,842.75,841.57,0.78874446]
[1757010688415,0.78498139,842.7,841.6,0.78874446]
[1757010689218,0.78498139,842.69,841.61,0.78874446]
[1757010689418,0.78498139,842.68,841.62,0.78874446]
[1757010689818,0.78498139,842.69,841.62,0.78874446]
[1757010690520,0.78498139,842.7,841.62,0.78874446]
[1757010690819,0.78498139,842.7,841.61,0.78874446]
[1757010691220,0.78498139,842.68,841.63,0.78874446]
[1757010691416,0.78498139,842.66,841.62,0.78874446]
[1757010691817,0.78498139,842.73,841.58,0.78874446]
[1757010692417,0.78498139,842.72,841.59,0.78874446]
[1757010693221,0.78498139,842.85,841.5,0.78874446]
[1757010693419,0.78498139,842.85,841.29,0.20660053]
[1757010693420,0.78498139,842.84,841.51,0.78874446]
[1757010693720,0.20655271,842.86,841.55,0.78874446]
[1757010694323,0.20655271,842.86,841.57,0.78874446]
[1757010695423,0.9915341,842.86,841.58,0.78874446]
[1757010695628,0.78498139,842.84,841.56,0.78874446]
[1757010696330,0.78498139,842.85,841.56,0.78874446]
[1757010697427,0.78498139,842.81,841.54,0.78874446]
[1757010698630,0.78498139,842.83,841.52,0.78874446]
[1757010699527,0.78498139,842.79,841.55,0.78874446]
[1757010700526,0.78498139,842.56,841.56,0.78874446]
[1757010700731,0.78498139,842.6,841.53,0.78874446]
[1757010701431,0.78498139,842.62,841.52,0.78874446]
[1757010702130,0.78498139,842.62,841.51,0.78874446]
[1757010702328,0.78498139,842.63,841.51,0.78874446]
[1757010702531,0.78498139,842.61,841.53,0.78874446]
[1757010702730,0.78498139,842.6,841.53,0.78874446]
[1757010703429,0.78498139,842.62,841.51,0.78874446]
[1757010703732,0.78498139,842.63,841.51,0.78874446]
[1757010704329,0.78498139,842.66,841.49,0.78874446]
[1757010704832,0.78498139,842.65,841.49,0.78874446]
[1757010705229,0.78498139,842.62,841.51,0.78874446]
[1757010706327,0.78498139,842.73,841.44,0.78874446]
[1757010706534,0.78498139,842.36,841.55,0.78874446]
[1757010706734,0.78498139,842.36,841.42,0.78874446]
[1757010706934,1.0598737,842.54,841.42,0.78874446]
[1757010706935,0.78498139,842.37,841.42,0.78874446]
[1757010707135,0.78498139,842.37,841.15,0.20661832]
[1757010707136,0.78498139,842.37,841.4,0.78874446]
[1757010708432,0.78498139,842.37,841.37,0.78874446]
[1757010708637,0.78498139,842.37,841.19,1.0629753]
[1757010708638,0.78498139,842.4,841.35,0.78874446]
[1757010709336,1.5898106,842.82,841.15,0.20661832]
[1757010709337,0.78498139,842.41,841.34,0.78874446]
[1757010710237,0.78498139,842.41,841.33,0.78874446]
[1757010710437,0.78498139,842.42,841.32,0.78874446]
[1757010710933,0.78498139,842.41,841.33,0.78874446]
[1757010711237,0.78498139,842.41,841.32,0.78874446]
[1757010712137,0.78498139,842.41,841.31,0.78874446]
[1757010712340,0.78498139,842.41,841.3,0.78874446]
[1757010712540,0.78498139,842.42,841.3,0.78874446]
[1757010712839,0.78498139,842.43,841.27,0.78874446]
[1757010713038,0.78498139,842.35,841.19,0.78874446]
[1757010713238,0.78498139,842.35,841.18,0.78874446]
[1757010714235,0.78498139,842.36,841.17,0.78874446]
[1757010715038,0.78498139,842.35,841.17,0.78874446]
[1757010715238,0.78498139,842.36,841.16,0.78874446]
[1757010716134,0.78498139,842.37,841.16,0.78874446]
[1757010716434,0.78498139,842.36,841.16,0.78874446]
[1757010716638,0.78498139,842.34,841.2,0.78874446]
[1757010717335,1.0598737,842.54,841.02,0.20667354]
[1757010717534,0.79118287,842.33,841.2,0.79627602]
[1757010718139,0.79118287,842.32,841.2,0.79627602]
[1757010718336,0.79118287,842.39,841.16,0.79627602]
[1757010719536,0.79118287,842.38,841.17,0.79627602]
[1757010721443,0.79118287,842.5,841.06,0.79627602]
[1757010721641,0.79118287,842.04,840.59,0.20673308]
[1757010721845,0.79118287,842.05,840.38,0.79627602]
[1757010722140,0.79118287,842.05,840.39,0.79627602]
[1757010722344,0.79118287,842.08,840.34,0.79627602]
[1757010723039,0.79118287,841.89,840.46,0.79627602]
[1757010723339,0.79118287,841.92,840.42,0.79627602]
[1757010723744,0.79118287,841.91,840.43,0.79627602]
[1757010724341,0.79118287,841.93,840.38,0.79627602]
[1757010724644,0.79118287,841.96,840.44,0.79627602]
[1757010724943,0.79118287,842.08,840.64,0.79627602]
[1757010725459,0.79118287,842.1,840.62,0.79627602]
[1757010725750,0.79118287,842.14,840.72,0.79627602]
[1757010726444,0.79118287,842.19,840.67,0.79627602]
[1757010726641,0.79118287,842.29,840.75,0.79627602]
[1757010726839,0.79118287,842.32,840.83,0.79627602]
[1757010727245,0.79118287,842.31,840.83,0.79627602]
[1757010727444,0.79118287,842.25,840.87,0.79627602]
[1757010727644,0.79118287,842.27,840.88,0.79627602]
[1757010728347,0.79118287,842.43,840.95,0.79627602]
[1757010729043,0.79118287,842.43,841.02,0.79627602]
[1757010729342,0.79118287,842.44,841.04,0.79627602]
[1757010729740,1.5898106,842.84,840.26,0.2068363]
[1757010729741,0.79118287,842.48,841.07,0.79627602]
[1757010730342,0.79118287,842.47,841.07,0.79627602]
[1757010730742,0.79118287,842.51,841.02,0.79627602]
[1757010731044,0.79118287,842.45,840.97,0.79627602]
[1757010731546,0.79118287,842.46,840.97,0.79627602]
[1757010731745,0.79118287,842.47,840.99,0.79627602]
[1757010731943,0.79118287,842.51,840.96,0.79627602]
[1757010734746,0.79118287,842.52,840.96,0.79627602]
[1757010735044,0.79118287,842.53,840.96,0.79627602]
[1757010735247,0.79118287,842.54,840.97,0.79627602]
[1757010735448,0.79118287,842.53,840.98,0.79627602]
[1757010736646,0.79118287,842.57,840.95,0.79627602]
[1757010737244,0.79118287,842.57,840.96,0.79627602]
[1757010738447,0.79118287,842.55,840.97,0.79627602]
[1757010738849,0.79118287,842.54,840.98,0.79627602]
[1757010739745,0.79118287,842.53,840.98,0.79627602]
[1757010740046,0.79118287,842.54,840.98,0.79627602]
[1757010740346,0.79118287,842.53,840.99,0.79627602]
[1757010741150,0.79118287,842.48,841.02,0.79627602]
[1757010741345,0.79118287,842.48,841.03,0.79627602]
[1757010744348,0.79118287,842.48,841.04,0.79627602]